[Event "FTX Crypto Cup MCCT 2022"]
[Site "Miami"]
[Date "2022.08.11"]
[Round "6.4"]
[White "Duda, Jan-Krzysztof"]
[Black "Praggnanandhaa R"]
[Result "0-1"]
[ECO "A22"]
[WhiteElo "2750"]
[BlackElo "2648"]
[Annotator "TA"]
[PlyCount "88"]
[EventDate "2022.08.10"]
[EventType "tourn"]
[EventCountry "USA"]
[SourceTitle "playchess.com"]
[Source "ChessBase"]
[SourceQuality "1"]
[TimeControl "900+10"]

{[%evp 11,88,5,16,-7,0,-6,-4,-19,-16,-21,-33,-29,-43,-33,-20,-28,-19,-31,-32,-45,-56,-71,-46,-100,-100,-104,-70,-72,-72,-75,-70,-55,-73,-68,-52,-78,-27,-19,-2,0,0,-123,-115,-140,-132,-247,-81,-85,-88,-81,-85,-76,-61,-86,-57,-368,-367,-501,-515,-704,-676,-2320,-2254,-1729,-1472,-2208,-848,-804,-804,-792,-767,-945,-910,-1033,-1033,-1050,-1176,-5085,-4656]} 1. c4 {[%emt 0:00:00]} e5 {[%emt 0:00:00]} 2. Nc3 {[%emt 0:00:05]} Nf6 {[%emt 0:00:02]} 3. e3 {[%emt 0:00:15]} Bb4 {[%emt 0:00:08]} 4. Nge2 {[%emt 0:00:03]} O-O {[%emt 0:00:08]} 5. a3 {[%emt 0:00:01]} Be7 {[%emt 0:00:00]} 6. d4 {[%emt 0:00:08]} exd4 {[%emt 0:00:04]} 7. Qxd4 {[%emt 0:00:11] A22: English Opening: 1...e5 2 Nc3 Nf6.} a5 $5 {[%emt 0:00:47][%cal Ba7a5,Ba5a4][%mdl 4] [#] A promising side line.} 8. Nf4 $146 {[%emt 0:00:51]} ({Predecessor:} 8. Ng3 Na6 9. Bd3 Nc5 10. Bc2 d6 11. O-O a4 12. e4 Re8 13. Qd1 Bg4 14. f3 Be6 {½-½ (44) Stalmach,K (2568)-Bescos Anzano,M (2561) GER email 2018}) 8... Na6 {[%emt 0:00:13]} 9. Be2 {[%emt 0:01:56] The position is equal.} Nc5 {[%emt 0:00:28] Threatening ...Nb3.} 10. Qd1 {[%emt 0:00:01] Inhibits Nb3.} a4 {[%emt 0:00:09]} 11. O-O {[%emt 0:00:01]} c6 {[%emt 0:00:38]} 12. Bd2 {[%emt 0:01:02]} Re8 {[%emt 0:00:13]} 13. Qc2 {[%emt 0:01:40]} d6 {[%emt 0:00:27]} 14. Rad1 {[%emt 0:00:02]} Bf8 {[%emt 0:00:06]} 15. Nb1 {[%emt 0:03:17]} g6 {[%emt 0:01:37]} 16. Bc3 {[%emt 0:00:37]} Bf5 {[%emt 0:00:36]} 17. Nd3 {[%emt 0:00:01]} (17. Bd3 $15) 17... Nfe4 $17 {[%emt 0:01:57]} 18. Bb4 {[%emt 0:01:29]} Qg5 {[%emt 0:00:51]} 19. Nd2 {[%emt 0:00:17]} Nxd2 {[%emt 0:02:44]} 20. Qxd2 {[%emt 0:00:06]} Be4 {[%emt 0:00:34][%csl Ge4][%cal Rg5g2]} 21. g3 {[%emt 0:00:31]} Nb3 $36 {[%emt 0:00:33][%mdl 2048] Black is in control.} 22. Qe1 {[%emt 0:00:05]} Rad8 {[%emt 0:00:41] Black is much more active.} (22... Bf5 $5 {[%cal Rf5h3]} 23. h4 Qe7 $15) 23. Bc3 {[%emt 0:01:24]} d5 {[%emt 0:00:25]} ({Better is} 23... Qf5 $17) 24. cxd5 $11 {[%emt 0:00:00]} cxd5 {[%emt 0:00:04][%cal Bc6d5,Bd5d4][%mdl 32]} 25. Ne5 {[%emt 0:01:26]} Re6 {[%emt 0:02:46]} (25... Rxe5 26. f4 Qe7 27. Bxe5 $14) 26. Bd3 {[%emt 0:00:30] [#]} (26. f4 $11 {remains equal.} Qe7 27. Bg4) 26... Bxd3 $1 $17 {[%emt 0:00:16]} ({Don't take} 26... Rxe5 27. f4 Qg4 28. fxe5 (28. Bxe5 Bf3 $16) 28... Bxd3 29. Rxd3 $16) 27. Nxd3 {[%emt 0:00:38]} d4 {[%emt 0:00:01]} 28. Nf4 {[%emt 0:00:01]} (28. Bb4 $17) 28... Ree8 $2 {[%emt 0:01:01]} (28... dxc3 $19 {is more deadly.} 29. Nxe6 {[#]} Rxd1 $1 30. Qxd1 fxe6 31. bxc3 Qd5) 29. Bb4 {[%emt 0:00:02]} dxe3 {[%emt 0:00:13]} 30. Rxd8 {[%emt 0:00:20]} Qxd8 {[%emt 0:00:07]} ({Of course not} 30... Rxd8 $6 31. Bxf8 Kxf8 32. Qxe3 $11) 31. fxe3 {[%emt 0:00:28]} Bxb4 {[%emt 0:00:36]} 32. Qxb4 {[%emt 0:00:00]} Nd2 {[%emt 0:00:04]} 33. Rc1 {[%emt 0:00:16][%mdl 8192] Now White is beyond hope.} (33. Rf2 $1 $15 Ne4 34. Rf1) 33... Rxe3 $19 {[%emt 0:00:19]} 34. Kh1 {[%emt 0:01:07] Threatens to win with Rd1.} Nf3 {[%emt 0:00:48] Hoping for ...Rb3. Black is clearly winning.} 35. Kg2 {[%emt 0:00:53]} Rb3 {[%emt 0:00:15]} 36. Qc4 {[%emt 0:00:45]} Qd2+ {[%emt 0:00:14]} 37. Ne2 {[%emt 0:00:05]} Re3 {[%emt 0:00:38]} 38. Rc3 {[%emt 0:00:05]} Qxe2+ {[%emt 0:00:29]} (38... Ne1+ $142 39. Kf2 Nd3+ 40. Qxd3 Rxd3) 39. Qxe2 {[%emt 0:00:03]} Rxe2+ {[%emt 0:00:00]} 40. Kxf3 {[%emt 0:00:00]} Rxb2 {[%emt 0:00:01] Strongly threatening ...Rb3. KR-KR} 41. Rc7 {[%emt 0:01:06]} Rxh2 {[%emt 0:00:05]} 42. Rxb7 {[%emt 0:00:08]} Ra2 {[%emt 0:00:01][%cal Bh2a2,Ba2a3,Ba3a1][%mdl 32]} 43. Kf4 {[%emt 0:00:01]} Rxa3 {[%emt 0:00:04]} 44. g4 {[%emt 0:00:24]} Ra1 {[%emt 0:00:03] Weighted Error Value: White=0.88/Black=0.17 (very precise)} 0-1

[Event "FTX Crypto Cup MCCT 2022"]
[Site "Miami"]
[Date "2022.08.11"]
[Round "6.5"]
[White "Carlsen, Magnus"]
[Black "Firouzja, Alireza"]
[Result "1-0"]
[ECO "A20"]
[WhiteElo "2864"]
[BlackElo "2793"]
[Annotator "TA"]
[PlyCount "95"]
[EventDate "2022.08.10"]
[EventType "tourn"]
[EventCountry "USA"]
[SourceTitle "playchess.com"]
[Source "ChessBase"]
[SourceQuality "1"]
[TimeControl "300+3"]

{[%evp 9,95,6,12,8,14,9,2,0,21,14,14,18,24,16,1,0,22,24,71,63,64,58,70,65,71,73,116,72,81,71,122,109,152,107,177,179,177,177,177,182,217,206,227,191,433,422,395,338,581,585,561,505,805,819,763,506,1126,1112,1084,1074,29973,29974,29973,29974,29976,29977,29977,29978,29978,29978,29980,29979,29988,29989,29989,29990,29990,29987,29988,29989,29989,29990,29990,29991,29991,29992,29995,29996]} 1. c4 {[%emt 0:00:00]} e5 {[%emt 0:00:00]} 2. g3 {[%emt 0:00:03]} Nf6 {[%emt 0:00:02]} 3. Bg2 {[%emt 0:00:01]} Bc5 {[%emt 0:00:01]} 4. d3 {[%emt 0:00:01]} O-O {[%emt 0:00:03]} 5. Nf3 {[%emt 0:00:01]} d6 {[%emt 0:00:03]} 6. Nc3 {[%emt 0:00:04] A20: English Opening: 1...e5.} c6 {[%emt 0:00:02]} 7. O-O {[%emt 0:00:03]} a5 {[%emt 0:00:01]} 8. d4 {[%emt 0:00:24] The position is equal.} exd4 {[%emt 0:00:02]} 9. Nxd4 {[%emt 0:00:00]} a4 {[%emt 0:00:02]} 10. e3 {[%emt 0:00:22]} a3 {[%emt 0:00:13] [#]} 11. Qc2 $146 {[%emt 0:00:08]} ({Predecessor:} 11. Na4 Bxd4 12. exd4 axb2 13. Nxb2 d5 14. c5 Re8 15. Re1 Bf5 16. Rxe8+ Qxe8 17. a4 {½-½ (33) Misericordia,A (2305)-Sviderskij,A (2260) LSS email 2021}) 11... Re8 {[%emt 0:00:21]} 12. Nb3 {[%emt 0:00:34]} axb2 {[%emt 0:00:29]} 13. Bxb2 {[%emt 0:00:00]} Be6 {[%emt 0:00:01]} (13... Ba3 $11 {should be considered.}) 14. Nxc5 $16 {[%emt 0:00:07]} dxc5 {[%emt 0:00:01]} 15. Ne2 {[%emt 0:00:07]} Nbd7 {[%emt 0:00:02]} 16. Nf4 {[%emt 0:00:03]} Qe7 {[%emt 0:00:04]} 17. a4 {[%emt 0:00:17][%cal Ba2a4,Ba4a5][%mdl 32]} Ra6 {[%emt 0:00:09]} 18. Rfb1 {[%emt 0:00:47]} Rea8 {[%emt 0:00:45]} 19. Bc3 {[%emt 0:00:05] A strong pair of Bishops.} R6a7 {[%emt 0:00:26]} ({Black should play} 19... Nf8) 20. a5 {[%emt 0:00:08]} Ne8 {[%emt 0:00:08]} 21. Qd3 {[%emt 0:00:25] 0x0.00198bd10010dp-1022s more active pieces.} Ndf6 {[%emt 0:00:19]} (21... Nf8 $16 {keeps fighting.}) 22. Nxe6 $18 {[%emt 0:00:13]} Qxe6 {[%emt 0:00:02]} 23. Rd1 {[%emt 0:00:02]} Nc7 {[%emt 0:00:39]} 24. e4 {[%emt 0:00:57][%cal Be3e4,Be4e5][%mdl 32]} Na6 {[%emt 0:00:36]} 25. e5 {[%emt 0:00:02]} Ne8 {[%emt 0:00:01]} 26. f4 {[%emt 0:00:01] Hoping for f5.} Nb4 $2 {[%emt 0:00:08]} (26... g6 27. Rab1 Ng7) 27. f5 {[%emt 0:00:04]} Qe7 {[%emt 0:00:47]} 28. Qd7 {[%emt 0:00:03]} Qg5 {[%emt 0:00:05]} (28... Qxd7 {is a better defense.} 29. Rxd7 b5) 29. e6 {[%emt 0:00:20]} fxe6 {[%emt 0:00:23]} 30. fxe6 {[%emt 0:00:05] Threatening mate with Qf7+.} Qe3+ {[%emt 0:00:18]} (30... b5 $142) 31. Kh1 {[%emt 0:00:04] Intending Qf7+ and mate.} (31. Kf1 b6 32. Qd2 Qxd2 33. Rxd2 (33. Bxd2 bxa5 34. Bxb4 axb4 $16) 33... bxa5 34. Bxb4 (34. Rd7 Nc2 $14) 34... cxb4 $16) 31... b6 {[%emt 0:00:14]} 32. axb6 {[%emt 0:00:39]} Nd3 {[%emt 0:00:06]} (32... Rxd7 $142 33. exd7 Nd3) 33. Qxd3 {[%emt 0:00:23]} (33. Rxa7 {is a self mate.} Nf2+ 34. Kg1 Nh3+ 35. Kh1 {[#]} Qg1+ $3 {[%mdl 512]} 36. Rxg1 Nf2#) 33... Qxd3 {[%emt 0:00:03]} 34. bxa7 {[%emt 0:00:01]} (34. Rxd3 $2 {perishes.} Rxa1+ 35. Bxa1 Rxa1+ 36. Bf1 Rxf1+ $19) 34... Qxc3 {[%emt 0:00:03]} 35. Bxc6 {[%emt 0:00:01] White mates.} Rxa7 {[%emt 0:00:05]} 36. Rxa7 {[%emt 0:00:04]} Qxc4 {[%emt 0:00:02]} 37. Ra8 {[%emt 0:00:03][%cal Ra8e8]} g6 {[%emt 0:00:02]} 38. Rxe8+ {[%emt 0:00:02]} Kg7 {[%emt 0:00:00]} 39. e7 {[%emt 0:00:01]} Qe2 {[%emt 0:00:04] [#]} 40. Rg8+ $3 {[%emt 0:00:10][%mdl 512]} Kh6 {[%emt 0:00:02] [#]} (40... Kxg8 41. e8=Q+) 41. e8=Q $1 {[%emt 0:00:02]} Qxd1+ {[%emt 0:00:01]} 42. Kg2 {[%emt 0:00:00]} Qc2+ {[%emt 0:00:01]} 43. Kf3 {[%emt 0:00:02]} Qf5+ {[%emt 0:00:04]} 44. Ke3 {[%emt 0:00:01]} Qg5+ {[%emt 0:00:02]} 45. Ke2 {[%emt 0:00:02]} Qg4+ {[%emt 0:00:03]} 46. Bf3 {[%emt 0:00:02]} Qc4+ {[%emt 0:00:01]} 47. Kf2 {[%emt 0:00:01]} Qa2+ {[%emt 0:00:03]} 48. Be2 {[%emt 0:00:01] Weighted Error Value: White=0.14 (very precise) /Black=0.38} 1-0

[Event "FTX Crypto Cup MCCT 2022"]
[Site "Miami"]
[Date "2022.08.11"]
[Round "6.5"]
[White "Praggnanandhaa R"]
[Black "Duda, Jan-Krzysztof"]
[Result "0-1"]
[ECO "D79"]
[WhiteElo "2648"]
[BlackElo "2750"]
[Annotator "TA"]
[PlyCount "110"]
[EventDate "2022.08.10"]
[EventType "tourn"]
[EventCountry "USA"]
[SourceTitle "playchess.com"]
[Source "ChessBase"]
[SourceQuality "1"]
[TimeControl "300+3"]

{[%evp 15,109,11,10,0,0,0,14,19,15,18,14,18,97,93,87,12,11,11,52,10,19,0,0,0,7,8,7,7,8,1,4,0,12,0,0,0,25,27,32,16,31,10,8,10,12,7,8,6,6,8,11,0,23,20,61,67,66,0,0,0,0,0,0,0,72,71,47,57,80,73,99,110,102,95,100,107,111,137,120,126,122,50,230,230,264,221,277,0,260,252,252,246,261,270,281,-29999]} 1. Nf3 {[%emt 0:00:00]} d5 {[%emt 0:00:00]} 2. g3 {[%emt 0:00:02]} g6 {[%emt 0:00:01]} 3. Bg2 {[%emt 0:00:02]} Bg7 {[%emt 0:00:00]} 4. O-O {[%emt 0:00:00]} Nf6 {[%emt 0:00:00]} 5. c4 {[%emt 0:00:09]} c6 {[%emt 0:00:03]} 6. cxd5 {[%emt 0:00:17]} cxd5 {[%emt 0:00:00]} 7. Ne5 {[%emt 0:00:01]} O-O {[%emt 0:00:04]} 8. d4 {[%emt 0:00:02]} Ng4 {[%emt 0:00:01]} 9. Bf4 {[%emt 0:00:02] D79: Fianchetto Grünfeld: Symmetrical Variation (6 0-0 c6 7 cxd5 cxd5).} Nxe5 {[%emt 0:00:12]} 10. Bxe5 {[%emt 0:00:02]} Bxe5 {[%emt 0:00:52]} (10... f6 $5 {[%cal Rf6e5]} 11. Bf4 Nc6 $11) 11. dxe5 {[%emt 0:00:00] The position is equal.} Nc6 {[%emt 0:00:01]} 12. Qxd5 {[%emt 0:00:46]} Qxd5 {[%emt 0:00:01]} (12... Qb6 {with more complications.} 13. Nc3 Rd8 14. Qb3 Qxb3 15. axb3 Rd2) 13. Bxd5 {[%emt 0:00:00] [#]} Bh3 $5 $146 {[%emt 0:00:01][%mdl 8] An interesting novelty.} (13... Nxe5 $11 14. f4 Ng4) ({Predecessor:} 13... Nxe5 14. Na3 Bd7 15. f4 Bc6 16. Rfd1 Rfd8 17. Bb3 Ng4 18. Nc4 Bb5 19. h3 Nf6 {½-½ (46) Banusz,T (2631)-Mamedov,R (2654) Tornelo INT 2021}) 14. Rc1 $16 {[%emt 0:00:05]} Nxe5 {[%emt 0:00:01]} 15. Nc3 {[%emt 0:00:55]} (15. Bxb7 $16 Rab8 16. Rc7) 15... Rfd8 $11 {[%emt 0:00:08]} 16. Rd1 {[%emt 0:00:05]} Rac8 {[%emt 0:00:22]} 17. f3 {[%emt 0:00:29]} b6 {[%emt 0:00:07]} 18. Bb7 {[%emt 0:00:26]} Rb8 {[%emt 0:00:05]} 19. Ba6 {[%emt 0:00:03]} h5 {[%emt 0:00:25]} 20. Kf2 {[%emt 0:00:09]} Kf8 {[%emt 0:00:21]} 21. Rac1 {[%emt 0:00:12]} Be6 {[%emt 0:00:20]} 22. b3 {[%emt 0:00:27]} Nc6 {[%emt 0:00:03]} 23. Bb5 {[%emt 0:00:10]} Nd4 {[%emt 0:00:08]} 24. Ba6 {[%emt 0:00:10]} Nc6 {[%emt 0:00:04]} 25. Bb5 {[%emt 0:00:19]} Nb4 {[%emt 0:00:07]} 26. Rxd8+ {[%emt 0:00:26]} Rxd8 {[%emt 0:00:02]} 27. a3 {[%emt 0:00:00]} a6 $1 {[%emt 0:00:41]} 28. axb4 {[%emt 0:00:20]} axb5 {[%emt 0:00:01]} 29. Nxb5 {[%emt 0:00:00]} Bxb3 $14 {[%emt 0:00:00][%mdl 4096] Endgame KRB-KRN} 30. Rc6 {[%emt 0:00:00]} Rb8 $1 {[%emt 0:00:11] [#] And now ...Ba4 would win.} 31. Rc7 {[%emt 0:00:08]} Ba4 {[%emt 0:00:46]} 32. Nc3 {[%emt 0:00:03]} Bb3 {[%emt 0:00:01]} 33. Ke3 {[%emt 0:00:04]} f6 {[%emt 0:00:06]} 34. Nb5 {[%emt 0:00:08]} Ke8 {[%emt 0:00:21]} 35. Nd4 {[%emt 0:00:13]} Bd5 {[%emt 0:00:02]} 36. Kd3 {[%emt 0:00:13]} (36. Nc6 $14 Bxc6 37. Rxc6) 36... Kd8 $11 {[%emt 0:00:13]} 37. Ra7 {[%emt 0:00:01]} Rc8 {[%emt 0:00:01]} 38. e4 {[%emt 0:00:04]} Bc4+ {[%emt 0:00:01]} 39. Kd2 {[%emt 0:00:02]} b5 {[%emt 0:00:57]} (39... e5 $11 {keeps the balance.} 40. Nc2 Rc7 41. Ra8+ Ke7) 40. Ra5 $16 {[%emt 0:00:09]} Bf1 {[%emt 0:00:07]} 41. Nxb5 {[%emt 0:00:05]} Bg2 {[%emt 0:00:03]} 42. Ke3 {[%emt 0:00:03]} Rc1 {[%emt 0:00:03]} 43. Ra8+ {[%emt 0:00:06]} Kd7 {[%emt 0:00:01]} 44. Ra7+ {[%emt 0:00:01]} Kd8 {[%emt 0:00:02]} 45. Nd4 {[%emt 0:00:02] Hoping for b5.} e5 {[%emt 0:00:02]} 46. Ne6+ {[%emt 0:00:02]} Kc8 {[%emt 0:00:01]} 47. Nc5 {[%emt 0:00:13]} Rc3+ {[%emt 0:00:04]} 48. Kf2 {[%emt 0:00:04]} ({White should play} 48. Kd2 $16 Rc4 49. Rf7 (49. Ra8+ Kc7 $18)) 48... Bxf3 $2 {[%emt 0:00:04] [#]} (48... Rc2+ $14 49. Ke3 Bf1) 49. Ra6 $1 $18 {[%emt 0:00:01] aiming for Rc6+.} Kb8 {[%emt 0:00:09]} 50. Rb6+ {[%emt 0:00:05]} ({Much less strong is} 50. Rxf6 $6 Bg4 51. Rxg6 Rc2+ 52. Ke3 Rxh2 $18) 50... Ka7 {[%emt 0:00:01] White must now prevent ...Rc2+.} 51. Ra6+ {[%emt 0:00:00]} Kb8 {[%emt 0:00:01]} 52. Rxf6 {[%emt 0:00:00]} Bg4 {[%emt 0:00:00]} 53. Rxg6 {[%emt 0:00:06]} Rc2+ {[%emt 0:00:02]} 54. Ke3 {[%emt 0:00:03]} Rxh2 {[%emt 0:00:00]} 55. Nd3 $4 {[%emt 0:00:02][%mdl 8192]} (55. b5 $18) 55... Re2# {[%emt 0:00:01] Quite a comeback for Black.  Weighted Error Value: White=0.36/Black=0.20 (precise)} 0-1

[Event "FTX Crypto Cup MCCT 2022"]
[Site "Miami"]
[Date "2022.08.11"]
[Round "6.6"]
[White "Firouzja, Alireza"]
[Black "Carlsen, Magnus"]
[Result "1/2-1/2"]
[ECO "B30"]
[WhiteElo "2793"]
[BlackElo "2864"]
[Annotator "TA"]
[PlyCount "156"]
[EventDate "2022.08.10"]
[EventType "tourn"]
[EventCountry "USA"]
[SourceTitle "playchess.com"]
[Source "ChessBase"]
[SourceQuality "1"]
[TimeControl "300+3"]

{[%evp 9,156,46,39,41,47,35,29,5,16,10,33,0,16,0,25,0,13,14,14,14,14,-4,0,-31,-35,-45,-25,-38,10,10,10,9,37,38,34,19,66,41,33,24,6,4,5,26,45,20,86,108,113,106,170,69,152,164,158,161,169,177,152,159,103,59,286,286,481,470,462,468,468,457,441,0,294,248,221,0,135,125,125,130,268,246,391,280,278,262,329,329,329,329,400,403,4662,4488,6070,1434,1253,252,252,22,22,22,22,24,24,24,24,22,26,26,24,24,64,22,22,22,22,22,24,24,24,18,24,24,24,20,20,20,20,20,20,18,18,18,18,18,18,18,18,18,22,18,18,18,22,22,22,18,18]} 1. e4 {[%emt 0:00:00]} c5 {[%emt 0:00:00]} 2. Nf3 {[%emt 0:00:02]} Nc6 {[%emt 0:00:02]} 3. Bb5 {[%emt 0:00:00]} e5 {[%emt 0:00:01]} 4. O-O {[%emt 0:00:01]} Bd6 {[%emt 0:00:01]} 5. c3 {[%emt 0:00:02]} a6 {[%emt 0:00:01]} 6. Ba4 {[%emt 0:00:03] B30: Sicilian: 2...Nc6 3 Bb5, lines without ...g6.} b5 {[%emt 0:00:02]} 7. Bc2 $1 {[%emt 0:00:01] 7.Bc2 is better than 7.Bb3.} Nge7 {[%emt 0:00:02] [#]} 8. Re1 $146 {[%emt 0:00:08] White has an edge.} ({Predecessor:} 8. a4 b4 9. Re1 Ng6 10. d4 bxc3 11. dxe5 cxb2 12. Bxb2 Bxe5 13. Nxe5 Ngxe5 14. Bxe5 Nxe5 {1-0 (28) Robson,R (2669)-Xiong,J (2700) Saint Louis 2021}) 8... O-O $1 {[%emt 0:00:03]} 9. a4 {[%emt 0:00:01] Strongly threatening axb5.} Rb8 {[%emt 0:00:05]} 10. d3 {[%emt 0:00:02]} (10. axb5 {is more complex.} axb5 11. d4 cxd4 12. cxd4 Nxd4 13. Nxd4 exd4 14. e5) 10... Ng6 {[%emt 0:00:06]} 11. Be3 {[%emt 0:00:11]} Be7 {[%emt 0:00:12]} 12. Nbd2 {[%emt 0:00:01]} d6 {[%emt 0:00:21]} 13. axb5 {[%emt 0:00:04]} axb5 {[%emt 0:00:02]} 14. Bb3 {[%emt 0:00:00]} Be6 {[%emt 0:00:24]} 15. Bd5 {[%emt 0:00:41]} Qd7 {[%emt 0:00:12]} 16. Ra6 {[%emt 0:00:08]} Bxd5 {[%emt 0:01:14]} 17. exd5 {[%emt 0:00:00][%cal Be4d5,Bd5d6][%mdl 32]} Nd8 {[%emt 0:00:00]} 18. Qb3 {[%emt 0:00:53]} f5 {[%emt 0:00:08] [#]} (18... Qc8 $15 {should be considered.} 19. Rea1 f5) 19. Bxc5 $1 $11 {[%emt 0:00:56]} dxc5 {[%emt 0:01:01]} 20. d6+ $1 {[%emt 0:00:00][%mdl 64] Discovered Attack} c4 {[%emt 0:00:01]} (20... Nf7 $5 {[%cal Re7d6]} 21. dxe7 Qxe7 $11) 21. Nxc4 {[%emt 0:00:01]} ({Much worse is} 21. dxc4 Bf6 22. c5+ Rf7 $17) 21... bxc4 {[%emt 0:00:05]} 22. Qxb8 {[%emt 0:00:02]} Nf7 {[%emt 0:00:05]} 23. Qb4 {[%emt 0:02:15] 0x0.0023645dd7a7dp-1022s more active pieces.} Nxd6 {[%emt 0:00:12]} 24. Nxe5 {[%emt 0:00:07]} Nxe5 {[%emt 0:00:06][%mdl 64] [#] Remove Defender} 25. Rxe5 {[%emt 0:00:00]} cxd3 {[%emt 0:00:01]} 26. Qd4 {[%emt 0:00:26]} Rd8 {[%emt 0:00:28] Threatens to win with ...Ne4.} 27. Qxd3 {[%emt 0:00:11]} Ne4 {[%emt 0:00:04]} (27... Qb7 $1 $11 28. h3 Nf7) 28. Qxd7 $16 {[%emt 0:00:04]} Rxd7 {[%emt 0:00:01][%cal Rd7d1]} 29. g4 {[%emt 0:00:02]} h5 {[%emt 0:00:29]} (29... Bf6 $16 30. Rxf5 Rd2) 30. gxf5 {[%emt 0:00:04]} (30. gxh5 $18 Bf6 31. Rxf5) 30... Ng5 {[%emt 0:00:07]} (30... Nc5 $14 31. Ra8+ Kf7) 31. Kg2 {[%emt 0:00:01]} h4 {[%emt 0:00:05]} 32. h3 {[%emt 0:00:02]} Bf6 {[%emt 0:00:01]} 33. Re2 {[%emt 0:00:05]} Rd5 {[%emt 0:00:05]} 34. c4 {[%emt 0:00:02]} Rxf5 {[%emt 0:00:05]} 35. b4 {[%emt 0:00:01][%cal Bb2b4,Bb4b5][%mdl 32]} Rf4 $2 {[%emt 0:00:01]} (35... Rf3 $1 $14) 36. Rc6 $18 {[%emt 0:00:02]} Nf3 $2 {[%emt 0:00:01]} (36... Bd4 37. b5 Kf7) 37. b5 {[%emt 0:00:03]} Nd4 {[%emt 0:00:16]} 38. Rc8+ {[%emt 0:00:00]} Kh7 {[%emt 0:00:01]} 39. Re3 {[%emt 0:00:01]} Nc2 {[%emt 0:00:03]} 40. Re2 {[%emt 0:00:08]} Nd4 {[%emt 0:00:01]} 41. Ree8 {[%emt 0:00:02]} Nf5 {[%emt 0:00:11]} 42. Re1 $2 {[%emt 0:00:10]} (42. c5 $18) 42... Bd4 {[%emt 0:00:06]} (42... Nd6 $11 {keeps the balance.} 43. Rc6 Nxc4) 43. Re2 $16 {[%emt 0:00:02] And now c5 would win.} (43. c5 $2 {leads to mate.} Rxf2+ 44. Kh1 Ng3+ 45. Kg1 Re2#) 43... Nd6 {[%emt 0:00:20]} 44. Rc6 {[%emt 0:00:03]} Nf7 {[%emt 0:00:14]} (44... Nb7 $16 45. b6 Na5) 45. b6 $18 {[%emt 0:00:02] Hoping for b7.} Ne5 {[%emt 0:00:01]} (45... Nd8 {keeps fighting.} 46. Rd6 Nb7) 46. Rc8 {[%emt 0:00:01] Black must now prevent b7.} Bxb6 {[%emt 0:00:03]} 47. c5 {[%emt 0:00:02]} ({Not} 47. Rxe5 Rxf2+ 48. Kh1 Rf1+ 49. Kg2 Rf2+ 50. Kh1 Rf1+ 51. Kg2 Rf2+ $11) 47... Bxc5 {[%emt 0:00:04]} 48. Rxc5 {[%emt 0:00:00][%mdl 4096] Endgame KRR-KRN} Nd7 {[%emt 0:00:05]} 49. Rg5 {[%emt 0:00:06]} Kh6 {[%emt 0:00:04]} 50. Rg4 {[%emt 0:00:04]} Rxg4+ {[%emt 0:00:01]} (50... Rf5 $142 51. Rxh4+ Kg5) 51. hxg4 {[%emt 0:00:00] KR-KN} Kg5 {[%emt 0:00:01]} 52. Kf3 {[%emt 0:00:02]} (52. Re7 $142 Nf6 53. Kh3) 52... Kf6 {[%emt 0:00:01]} 53. Ra2 $2 {[%emt 0:00:09]} (53. Kf4 g5+ 54. Ke4) 53... Ne5+ {[%emt 0:00:02]} 54. Kf4 $2 {[%emt 0:00:00]} (54. Ke4 $18 {Threatening mate with Ra6+.} Nxg4 55. Kf4) 54... g5+ $1 $11 {[%emt 0:00:02]} 55. Ke4 {[%emt 0:00:01] White threatens Ra6+ and mate.} Nxg4 {[%emt 0:00:01]} 56. Ra6+ {[%emt 0:00:06]} Kg7 $1 {[%emt 0:00:08]} 57. Kf5 {[%emt 0:00:02]} Nxf2 {[%emt 0:00:01]} 58. Ra2 {[%emt 0:00:05]} Nh3 {[%emt 0:00:07]} 59. Ra7+ {[%emt 0:00:03][%mdl 1024] White has compensation.} Kh6 {[%emt 0:00:04]} 60. Ra6+ $1 {[%emt 0:00:05]} Kh5 {[%emt 0:00:03]} 61. Ra8 {[%emt 0:00:02][%cal Ra8h8]} Kh6 {[%emt 0:00:01]} 62. Rh8+ {[%emt 0:00:02]} Kg7 {[%emt 0:00:01]} 63. Rh5 {[%emt 0:00:00]} Kf7 {[%emt 0:00:05]} 64. Rh7+ {[%emt 0:00:03]} Ke8 {[%emt 0:00:01]} 65. Rh6 {[%emt 0:00:10]} Nf4 {[%emt 0:00:02]} 66. Kxg5 {[%emt 0:00:02]} Nd5 {[%emt 0:00:01]} 67. Kf5 {[%emt 0:00:02]} Kd7 {[%emt 0:00:02] The position is equal.} 68. Ke5 {[%emt 0:00:01]} Nc7 {[%emt 0:00:03]} 69. Rxh4 {[%emt 0:00:01]} Kc6 {[%emt 0:00:02]} 70. Rc4+ {[%emt 0:00:01]} Kd7 {[%emt 0:00:01]} 71. Rc1 {[%emt 0:00:00]} Nb5 {[%emt 0:00:02]} 72. Rb1 {[%emt 0:00:02]} Kc6 {[%emt 0:00:02]} 73. Rh1 {[%emt 0:00:02]} Nc7 {[%emt 0:00:02]} 74. Rh8 {[%emt 0:00:00]} Kd7 {[%emt 0:00:01]} 75. Rh7+ {[%emt 0:00:01]} Kc6 {[%emt 0:00:01]} 76. Rh6+ {[%emt 0:00:00]} Kd7 {[%emt 0:00:00]} 77. Rb6 {[%emt 0:00:01]} Ne8 {[%emt 0:00:03]} 78. Rb7+ {[%emt 0:00:06]} Nc7 {[%emt 0:00:02] Black defended with fortune.  Weighted Error Value: White=0.38/Black=0.35} 1/2-1/2